[Event "Early-Titled-Tuesday-Blitz-October-10-2023"]
[Site "Chess.com"]
[Date "2023.10.10"]
[Round "11"]
[White "DenLaz"]
[Black "djokovic74"]
[Result "1-0"]
[WhiteElo "3049"]
[BlackElo "2761"]
[TimeControl "180+1"]
[EndTime "10:04:36 PDT"]
[Termination "DenLaz won by checkmate"]

1. d4 {[%clk 0:03:00.9]} 1... e6 {[%clk 0:02:59.4]} 2. c4 {[%clk 0:03:01.5]}
2... Nf6 {[%clk 0:02:59.3]} 3. Nf3 {[%clk 0:03:02.1]} 3... Bb4+ {[%clk
0:02:59.4]} 4. Bd2 {[%clk 0:03:01.8]} 4... Qe7 {[%clk 0:02:59.4]} 5. g3 {[%clk
0:02:59]} 5... Nc6 {[%clk 0:02:59.6]} 6. Nc3 {[%clk 0:02:56.4]} 6... Bxc3 {[%clk
0:02:59.9]} 7. Bxc3 {[%clk 0:02:56.6]} 7... Ne4 {[%clk 0:03:00.4]} 8. Qc2 {[%clk
0:02:47.3]} 8... Nxc3 {[%clk 0:02:59.2]} 9. Qxc3 {[%clk 0:02:48.2]} 9... Qb4
{[%clk 0:02:59.5]} 10. Kd2 {[%clk 0:02:48.6]} 10... Qxc3+ {[%clk 0:02:50.9]} 11.
Kxc3 {[%clk 0:02:49.5]} 11... a5 {[%clk 0:02:51.5]} 12. Bg2 {[%clk 0:02:49.8]}
12... d6 {[%clk 0:02:48]} 13. b3 {[%clk 0:02:48.1]} 13... Bd7 {[%clk 0:02:46.6]}
14. Ne1 {[%clk 0:02:46.8]} 14... Ke7 {[%clk 0:02:35.8]} 15. Nd3 {[%clk
0:02:46.5]} 15... f6 {[%clk 0:02:02.5]} 16. a3 {[%clk 0:02:45.3]} 16... Rhb8
{[%clk 0:01:53.5]} 17. b4 {[%clk 0:02:44.5]} 17... e5 {[%clk 0:01:39.3]} 18. e3
{[%clk 0:02:42.9]} 18... Bf5 {[%clk 0:01:35.3]} 19. b5 {[%clk 0:02:41.1]} 19...
Nd8 {[%clk 0:01:20.6]} 20. a4 {[%clk 0:02:37.5]} 20... g5 {[%clk 0:00:58.7]} 21.
f4 {[%clk 0:02:27.7]} 21... Bxd3 {[%clk 0:00:51.6]} 22. Kxd3 {[%clk 0:02:26.8]}
22... Nf7 {[%clk 0:00:51.7]} 23. Bd5 {[%clk 0:02:23.3]} 23... c6 {[%clk
0:00:45.7]} 24. Bxf7 {[%clk 0:02:05.4]} 24... Kxf7 {[%clk 0:00:44.9]} 25. fxe5
{[%clk 0:02:05.9]} 25... dxe5 {[%clk 0:00:36.1]} 26. dxe5 {[%clk 0:02:05.9]}
26... Rd8+ {[%clk 0:00:34.5]} 27. Kc3 {[%clk 0:02:00.9]} 27... f5 {[%clk
0:00:35]} 28. bxc6 {[%clk 0:01:56]} 28... bxc6 {[%clk 0:00:34.8]} 29. Rab1
{[%clk 0:01:56.5]} 29... Rd7 {[%clk 0:00:23]} 30. Rb6 {[%clk 0:01:56]} 30...
Rad8 {[%clk 0:00:23.2]} 31. c5 {[%clk 0:01:31.9]} 31... Rd3+ {[%clk 0:00:22]}
32. Kc4 {[%clk 0:01:32.4]} 32... Rxe3 {[%clk 0:00:18.9]} 33. Rxc6 {[%clk
0:01:31.6]} 33... Ra3 {[%clk 0:00:09.9]} 34. Kb5 {[%clk 0:01:20.9]} 34... Rd4
{[%clk 0:00:10.1]} 35. Rf1 {[%clk 0:01:11.2]} 35... f4 {[%clk 0:00:08.7]} 36.
gxf4 {[%clk 0:01:09.7]} 36... Rb4+ {[%clk 0:00:07.8]} 37. Ka6 {[%clk 0:01:09.6]}
37... gxf4 {[%clk 0:00:06.2]} 38. Rf6+ {[%clk 0:01:07.7]} 38... Ke7 {[%clk
0:00:06.1]} 39. R1xf4 {[%clk 0:01:08.2]} 39... Raxa4 {[%clk 0:00:06.4]} 40. R4f5
{[%clk 0:01:00.2]} 40... Ra1 {[%clk 0:00:04]} 41. Rh5 {[%clk 0:00:59.1]} 41...
a4 {[%clk 0:00:01.6]} 42. Rxh7+ {[%clk 0:00:59.2]} 42... Ke8 {[%clk 0:00:02.1]}
43. Rg6 {[%clk 0:00:50.7]} 43... Kf8 {[%clk 0:00:02.1]} 44. e6 {[%clk
0:00:51.3]} 44... Re1 {[%clk 0:00:02.1]} 45. Rf7+ {[%clk 0:00:51.2]} 45... Ke8
{[%clk 0:00:02.4]} 46. Rg8# {[%clk 0:00:52.1]} 1-0

[Event "Early-Titled-Tuesday-Blitz-October-10-2023"]
[Site "Chess.com"]
[Date "2023.10.10"]
[Round "11"]
[White "rachidhuilda"]
[Black "mary-sanna"]
[Result "1/2-1/2"]
[WhiteElo "2356"]
[BlackElo "2158"]
[TimeControl "180+1"]
[EndTime "10:04:36 PDT"]
[Termination "Game drawn by repetition"]

1. d4 {[%clk 0:02:43.4]} 1... d5 {[%clk 0:02:59.8]} 2. c4 {[%clk 0:02:42.3]}
2... e6 {[%clk 0:03:00]} 3. Nf3 {[%clk 0:02:42.7]} 3... Nf6 {[%clk 0:02:57.9]}
4. g3 {[%clk 0:02:42.5]} 4... dxc4 {[%clk 0:02:57.5]} 5. Bg2 {[%clk 0:02:42.6]}
5... Nc6 {[%clk 0:02:57.7]} 6. O-O {[%clk 0:02:41.6]} 6... Be7 {[%clk
0:02:54.8]} 7. a4 {[%clk 0:02:34]} 7... O-O {[%clk 0:02:49.7]} 8. Na3 {[%clk
0:02:33.7]} 8... Na5 {[%clk 0:02:32.8]} 9. Qc2 {[%clk 0:02:30.2]} 9... Nb3
{[%clk 0:02:30]} 10. Ra2 {[%clk 0:02:22.4]} 10... Nxd4 {[%clk 0:02:22.5]} 11.
Nxd4 {[%clk 0:02:22.5]} 11... Qxd4 {[%clk 0:02:22.2]} 12. Qxc4 {[%clk
0:02:19.9]} 12... Qxc4 {[%clk 0:02:17.4]} 13. Nxc4 {[%clk 0:02:20.8]} 13... Rd8
{[%clk 0:02:09.9]} 14. a5 {[%clk 0:02:04.9]} 14... Rb8 {[%clk 0:01:55.1]} 15. e4
{[%clk 0:01:53.2]} 15... b5 {[%clk 0:01:39.1]} 16. axb6 {[%clk 0:01:52.6]} 16...
axb6 {[%clk 0:01:39]} 17. Bf4 {[%clk 0:01:52.6]} 17... Ne8 {[%clk 0:01:35.1]}
18. Rc1 {[%clk 0:01:41.2]} 18... g5 {[%clk 0:01:29.5]} 19. Be3 {[%clk
0:01:33.2]} 19... Bb7 {[%clk 0:01:27.7]} 20. Ne5 {[%clk 0:01:24.4]} 20... c5
{[%clk 0:01:22.7]} 21. h3 {[%clk 0:00:57]} 21... Nd6 {[%clk 0:01:11.6]} 22. f3
{[%clk 0:00:56.3]} 22... Bf6 {[%clk 0:01:05.9]} 23. Nc4 {[%clk 0:00:52.2]} 23...
Nxc4 {[%clk 0:01:03.8]} 24. Rxc4 {[%clk 0:00:53.1]} 24... Rd1+ {[%clk
0:01:03.6]} 25. Kf2 {[%clk 0:00:53.4]} 25... Rb1 {[%clk 0:00:57.8]} 26. Rc2
{[%clk 0:00:47.6]} 26... h6 {[%clk 0:00:49.3]} 27. f4 {[%clk 0:00:46.3]} 27...
gxf4 {[%clk 0:00:43.5]} 28. gxf4 {[%clk 0:00:47.2]} 28... Bh4+ {[%clk
0:00:43.5]} 29. Kf3 {[%clk 0:00:45.4]} 29... f5 {[%clk 0:00:43.5]} 30. Ke2
{[%clk 0:00:43.2]} 30... fxe4 {[%clk 0:00:31.6]} 31. Rc4 {[%clk 0:00:42.7]}
31... Bd5 {[%clk 0:00:18.2]} 32. Rca4 {[%clk 0:00:34.6]} 32... Bxa2 {[%clk
0:00:17.7]} 33. Rxa2 {[%clk 0:00:35.5]} 33... Rd8 {[%clk 0:00:15.9]} 34. Bxe4
{[%clk 0:00:31.3]} 34... Re1+ {[%clk 0:00:16]} 35. Kf3 {[%clk 0:00:31]} 35...
Kf7 {[%clk 0:00:14.7]} 36. Ra7+ {[%clk 0:00:30.5]} 36... Kf6 {[%clk 0:00:13.6]}
37. Rh7 {[%clk 0:00:25.7]} 37... Rf1+ {[%clk 0:00:11.7]} 38. Ke2 {[%clk
0:00:26]} 38... Re1+ {[%clk 0:00:11.5]} 39. Kf3 {[%clk 0:00:26.7]} 39... Rf1+
{[%clk 0:00:11.9]} 40. Ke2 {[%clk 0:00:27]} 40... Re1+ {[%clk 0:00:07.5]} 41.
Kf3 {[%clk 0:00:27.4]} 1/2-1/2

[Event "Early-Titled-Tuesday-Blitz-October-10-2023"]
[Site "Chess.com"]
[Date "2023.10.10"]
[Round "11"]
[White "Ariadna_Atreides"]
[Black "soumeow"]
[Result "0-1"]
[WhiteElo "2192"]
[BlackElo "2298"]
[TimeControl "180+1"]
[EndTime "10:04:38 PDT"]
[Termination "soumeow won on time"]

1. d4 {[%clk 0:03:00.9]} 1... Nf6 {[%clk 0:03:00.1]} 2. Nf3 {[%clk 0:03:00.6]}
2... g6 {[%clk 0:03:00.6]} 3. Nbd2 {[%clk 0:02:59.9]} 3... Bg7 {[%clk
0:02:57.7]} 4. e4 {[%clk 0:02:58.1]} 4... d6 {[%clk 0:02:58.3]} 5. Bd3 {[%clk
0:02:57.3]} 5... O-O {[%clk 0:02:58.4]} 6. O-O {[%clk 0:02:56.5]} 6... c5 {[%clk
0:02:58.7]} 7. c3 {[%clk 0:02:55.8]} 7... Nbd7 {[%clk 0:02:41.4]} 8. Re1 {[%clk
0:02:52.6]} 8... e5 {[%clk 0:02:39.4]} 9. dxe5 {[%clk 0:02:42.3]} 9... dxe5
{[%clk 0:02:40.3]} 10. Nc4 {[%clk 0:02:42.1]} 10... Qe7 {[%clk 0:02:39]} 11. Bc2
{[%clk 0:02:36.6]} 11... Ne8 {[%clk 0:02:28]} 12. Ne3 {[%clk 0:02:32.3]} 12...
Nc7 {[%clk 0:02:12.3]} 13. Nd5 {[%clk 0:02:16.5]} 13... Nxd5 {[%clk 0:02:12.1]}
14. exd5 {[%clk 0:02:14.9]} 14... Qd6 {[%clk 0:02:12.3]} 15. Ng5 {[%clk
0:02:08]} 15... Nb6 {[%clk 0:02:09.4]} 16. Be3 {[%clk 0:01:38.4]} 16... f5
{[%clk 0:01:57.2]} 17. a4 {[%clk 0:01:20.1]} 17... c4 {[%clk 0:01:52.2]} 18.
Bxb6 {[%clk 0:01:16.4]} 18... axb6 {[%clk 0:01:52.9]} 19. b3 {[%clk 0:01:05.4]}
19... e4 {[%clk 0:01:31.7]} 20. Qd2 {[%clk 0:00:56.8]} 20... Be5 {[%clk
0:01:08.5]} 21. g3 {[%clk 0:00:45]} 21... Qf6 {[%clk 0:01:04.8]} 22. h4 {[%clk
0:00:18.7]} 22... Bxc3 {[%clk 0:01:03.8]} 23. Qe2 {[%clk 0:00:18.1]} 23... Bxa1
{[%clk 0:01:01.2]} 24. Qxc4 {[%clk 0:00:18.2]} 24... Kh8 {[%clk 0:00:58.6]} 25.
d6 {[%clk 0:00:16.6]} 25... Bd7 {[%clk 0:00:44.1]} 26. Qc7 {[%clk 0:00:15.6]}
26... Rad8 {[%clk 0:00:43]} 27. Qxb6 {[%clk 0:00:09.8]} 27... h6 {[%clk
0:00:38.5]} 28. Nh3 {[%clk 0:00:09]} 28... Bd4 {[%clk 0:00:34.3]} 29. Qxb7
{[%clk 0:00:07.2]} 29... Qxd6 {[%clk 0:00:33]} 30. Nf4 {[%clk 0:00:06]} 30...
Rg8 {[%clk 0:00:29.3]} 31. Rd1 {[%clk 0:00:05.8]} 31... Qc5 {[%clk 0:00:28.7]}
32. h5 {[%clk 0:00:05.2]} 32... gxh5 {[%clk 0:00:26.2]} 33. Nxh5 {[%clk
0:00:02.8]} 33... Qxc2 {[%clk 0:00:24.9]} 34. Qc6 {[%clk 0:00:01.1]} 34... Qxc6
{[%clk 0:00:24.3]} 0-1

[Event "Early-Titled-Tuesday-Blitz-October-10-2023"]
[Site "Chess.com"]
[Date "2023.10.10"]
[Round "11"]
[White "vishwa_vijeta"]
[Black "KorolDimitriy75"]
[Result "1-0"]
[WhiteElo "2554"]
[BlackElo "2408"]
[TimeControl "180+1"]
[EndTime "10:04:45 PDT"]
[Termination "vishwa_vijeta won on time"]

1. e4 {[%clk 0:02:58.3]} 1... c5 {[%clk 0:03:00.1]} 2. Nf3 {[%clk 0:02:58.8]}
2... d6 {[%clk 0:03:00.6]} 3. d4 {[%clk 0:02:59.7]} 3... cxd4 {[%clk 0:03:01.3]}
4. Nxd4 {[%clk 0:03:00.6]} 4... Nf6 {[%clk 0:03:01.8]} 5. Nc3 {[%clk 0:03:01.1]}
5... g6 {[%clk 0:03:02.5]} 6. Be3 {[%clk 0:02:59.6]} 6... Bg7 {[%clk 0:03:03]}
7. Qd2 {[%clk 0:03:00.5]} 7... O-O {[%clk 0:03:03.3]} 8. Bc4 {[%clk 0:03:01.4]}
8... Nc6 {[%clk 0:03:03]} 9. f3 {[%clk 0:02:57.6]} 9... Bd7 {[%clk 0:03:02.5]}
10. O-O-O {[%clk 0:02:56.4]} 10... Qa5 {[%clk 0:03:02.3]} 11. Kb1 {[%clk
0:02:53.1]} 11... Rfc8 {[%clk 0:03:01.5]} 12. Bb3 {[%clk 0:02:53.1]} 12... Ne5
{[%clk 0:03:01.2]} 13. h4 {[%clk 0:02:53.2]} 13... b5 {[%clk 0:03:01]} 14. h5
{[%clk 0:02:52.3]} 14... Nc4 {[%clk 0:03:00.4]} 15. Bxc4 {[%clk 0:02:52.2]}
15... bxc4 {[%clk 0:03:01.3]} 16. hxg6 {[%clk 0:02:51.9]} 16... fxg6 {[%clk
0:03:02.2]} 17. Bh6 {[%clk 0:02:52.4]} 17... Bh8 {[%clk 0:03:02.3]} 18. Nd5
{[%clk 0:02:46.9]} 18... Qxd2 {[%clk 0:02:54.8]} 19. Rxd2 {[%clk 0:02:40.8]}
19... Nxd5 {[%clk 0:02:53.8]} 20. exd5 {[%clk 0:02:41.4]} 20... c3 {[%clk
0:02:48.3]} 21. bxc3 {[%clk 0:02:42.3]} 21... Rab8+ {[%clk 0:02:20.6]} 22. Nb3
{[%clk 0:02:40.1]} 22... a5 {[%clk 0:02:14.5]} 23. Kc1 {[%clk 0:02:36.6]} 23...
Bxc3 {[%clk 0:01:52.3]} 24. Re2 {[%clk 0:02:24.1]} 24... a4 {[%clk 0:01:40.3]}
25. Nd2 {[%clk 0:02:18.6]} 25... Rb2 {[%clk 0:01:14.9]} 26. Rxe7 {[%clk
0:01:50]} 26... Rxa2 {[%clk 0:00:32.7]} 27. Nb1 {[%clk 0:01:15.3]} 27... Bf5
{[%clk 0:00:14.5]} 28. Nxc3 {[%clk 0:00:59.4]} 28... Rxc2+ {[%clk 0:00:07.6]}
29. Kd1 {[%clk 0:00:58.5]} 29... R2xc3 {[%clk 0:00:05.9]} 30. Bd2 {[%clk
0:00:56.7]} 30... Rd3 {[%clk 0:00:05.1]} 31. Rhxh7 {[%clk 0:00:53.5]} 31... a3
{[%clk 0:00:03.3]} 32. Reg7+ {[%clk 0:00:42.3]} 32... Kf8 {[%clk 0:00:03]} 33.
Ra7 {[%clk 0:00:43.2]} 33... Kg8 {[%clk 0:00:02.9]} 34. Rhb7 {[%clk 0:00:26.6]}
34... Rd4 {[%clk 0:00:01.3]} 35. Ke1 {[%clk 0:00:18.9]} 1-0

[Event "Early-Titled-Tuesday-Blitz-October-10-2023"]
[Site "Chess.com"]
[Date "2023.10.10"]
[Round "11"]
[White "DTChess"]
[Black "Manukyan_Artak"]
[Result "1-0"]
[WhiteElo "2619"]
[BlackElo "2468"]
[TimeControl "180+1"]
[EndTime "10:04:46 PDT"]
[Termination "DTChess won by resignation"]

1. e4 {[%clk 0:03:00.9]} 1... c6 {[%clk 0:02:59.9]} 2. d4 {[%clk 0:03:00.9]}
2... d5 {[%clk 0:03:00.8]} 3. Nc3 {[%clk 0:03:01.6]} 3... dxe4 {[%clk
0:03:01.2]} 4. Nxe4 {[%clk 0:03:01.8]} 4... Nf6 {[%clk 0:03:02.1]} 5. Nxf6+
{[%clk 0:03:02.2]} 5... exf6 {[%clk 0:03:03]} 6. c3 {[%clk 0:03:02.8]} 6... Bd6
{[%clk 0:03:03.9]} 7. Bd3 {[%clk 0:03:03]} 7... Na6 {[%clk 0:03:03.8]} 8. Ne2
{[%clk 0:03:02.1]} 8... Nc7 {[%clk 0:03:04.3]} 9. Qc2 {[%clk 0:03:00.7]} 9...
Nd5 {[%clk 0:03:04.1]} 10. O-O {[%clk 0:02:58.6]} 10... h5 {[%clk 0:03:02.9]}
11. a3 {[%clk 0:02:55.7]} 11... b5 {[%clk 0:03:02.5]} 12. b3 {[%clk 0:02:53.6]}
12... O-O {[%clk 0:03:01]} 13. c4 {[%clk 0:02:52.2]} 13... bxc4 {[%clk
0:03:00.7]} 14. bxc4 {[%clk 0:02:52.2]} 14... Ne7 {[%clk 0:03:00.3]} 15. Bb2
{[%clk 0:02:46.3]} 15... g6 {[%clk 0:02:52.7]} 16. Ng3 {[%clk 0:02:36.5]} 16...
f5 {[%clk 0:02:45.2]} 17. Rae1 {[%clk 0:02:26.5]} 17... h4 {[%clk 0:02:42.2]}
18. Ne2 {[%clk 0:02:21.2]} 18... h3 {[%clk 0:02:41.9]} 19. g3 {[%clk 0:02:18.9]}
19... Re8 {[%clk 0:02:35]} 20. d5 {[%clk 0:02:15]} 20... Rb8 {[%clk 0:02:28]}
21. Ba1 {[%clk 0:02:10.6]} 21... Qa5 {[%clk 0:02:25.8]} 22. Nd4 {[%clk
0:01:58.7]} 22... cxd5 {[%clk 0:02:21.8]} 23. Nc6 {[%clk 0:01:53.8]} 23... Qxa3
{[%clk 0:02:06.7]} 24. Nxb8 {[%clk 0:01:44.3]} 24... Bxb8 {[%clk 0:02:07.6]} 25.
cxd5 {[%clk 0:01:37.6]} 25... Qd6 {[%clk 0:01:54.4]} 26. Qc3 {[%clk 0:01:30.4]}
26... f6 {[%clk 0:01:53.3]} 27. Re6 {[%clk 0:01:19]} 27... Qxd5 {[%clk
0:01:47.1]} 28. Re4 {[%clk 0:01:11]} 28... Be5 {[%clk 0:01:15]} 29. Bc4 {[%clk
0:01:05.9]} 29... Bxc3 {[%clk 0:01:11.3]} 30. Bxd5+ {[%clk 0:01:04.9]} 30... Kg7
{[%clk 0:01:08.3]} 31. Rxe7+ {[%clk 0:01:02]} 31... Rxe7 {[%clk 0:01:04.4]} 32.
Bxc3 {[%clk 0:01:02]} 32... Bb7 {[%clk 0:01:05.1]} 33. Bxb7 {[%clk 0:00:59.4]}
33... Rxb7 {[%clk 0:01:06]} 34. Bd4 {[%clk 0:00:55.4]} 34... a5 {[%clk
0:01:03.6]} 35. Ra1 {[%clk 0:00:54.5]} 35... Rb5 {[%clk 0:01:02.7]} 36. Kf1
{[%clk 0:00:53.7]} 36... g5 {[%clk 0:01:03]} 37. Ke2 {[%clk 0:00:52.9]} 37... g4
{[%clk 0:01:02.9]} 38. Bc3 {[%clk 0:00:50.8]} 38... Kg6 {[%clk 0:00:56.7]} 39.
Bxa5 {[%clk 0:00:48]} 39... f4 {[%clk 0:00:56.7]} 40. gxf4 {[%clk 0:00:46]}
40... Kf5 {[%clk 0:00:56.5]} 41. Bd2 {[%clk 0:00:45.7]} 41... Rb2 {[%clk
0:00:53.2]} 42. Ra5+ {[%clk 0:00:43.1]} 42... Ke4 {[%clk 0:00:52.9]} 43. Ra4+
{[%clk 0:00:38.6]} 43... Kf5 {[%clk 0:00:52.6]} 44. Rd4 {[%clk 0:00:34.6]} 44...
Ra2 {[%clk 0:00:52.1]} 45. Ke3 {[%clk 0:00:30.2]} 45... Ra1 {[%clk 0:00:45.3]}
46. Rd5+ {[%clk 0:00:28.5]} 46... Ke6 {[%clk 0:00:44.9]} 47. Rh5 {[%clk
0:00:25.3]} 47... Rh1 {[%clk 0:00:43.9]} 48. f5+ {[%clk 0:00:25.5]} 48... Kd5
{[%clk 0:00:38.6]} 49. Bc3 {[%clk 0:00:22.9]} 49... Rxh2 {[%clk 0:00:38.7]} 50.
Bxf6 {[%clk 0:00:22.6]} 50... Rg2 {[%clk 0:00:37.4]} 51. Bg5 {[%clk 0:00:18.3]}
51... h2 {[%clk 0:00:36.1]} 52. Bf4 {[%clk 0:00:18.4]} 1-0

[Event "Early-Titled-Tuesday-Blitz-October-10-2023"]
[Site "Chess.com"]
[Date "2023.10.10"]
[Round "11"]
[White "Cayse"]
[Black "Fandorine"]
[Result "0-1"]
[WhiteElo "2853"]
[BlackElo "2928"]
[TimeControl "180+1"]
[EndTime "10:04:49 PDT"]
[Termination "Fandorine won on time"]

1. e4 {[%clk 0:03:00.9]} 1... g6 {[%clk 0:02:59.8]} 2. d4 {[%clk 0:03:00.2]}
2... Bg7 {[%clk 0:02:59.1]} 3. Nc3 {[%clk 0:03:00.8]} 3... d6 {[%clk 0:02:59.2]}
4. f4 {[%clk 0:03:00.7]} 4... Nf6 {[%clk 0:02:58.9]} 5. Nf3 {[%clk 0:03:00.6]}
5... Nc6 {[%clk 0:02:59.6]} 6. Be3 {[%clk 0:02:58.6]} 6... O-O {[%clk 0:02:59]}
7. Qd2 {[%clk 0:02:50.2]} 7... Bg4 {[%clk 0:02:22.7]} 8. d5 {[%clk 0:02:44.2]}
8... Bxf3 {[%clk 0:02:08.2]} 9. gxf3 {[%clk 0:02:43.1]} 9... Nb4 {[%clk
0:02:06]} 10. a3 {[%clk 0:02:38]} 10... Na6 {[%clk 0:02:06.2]} 11. Rg1 {[%clk
0:02:24.8]} 11... Nc5 {[%clk 0:01:58]} 12. f5 {[%clk 0:02:23.7]} 12... Ncd7
{[%clk 0:01:49.9]} 13. O-O-O {[%clk 0:02:21.2]} 13... c6 {[%clk 0:01:49.8]} 14.
f4 {[%clk 0:01:59.8]} 14... cxd5 {[%clk 0:01:41.1]} 15. exd5 {[%clk 0:01:58.9]}
15... Qa5 {[%clk 0:01:34.5]} 16. fxg6 {[%clk 0:01:52.7]} 16... hxg6 {[%clk
0:01:25.3]} 17. Bd4 {[%clk 0:01:41.4]} 17... Bh6 {[%clk 0:00:41.5]} 18. Kb1
{[%clk 0:01:40.7]} 18... Nxd5 {[%clk 0:00:27.7]} 19. Bc4 {[%clk 0:01:26.7]}
19... N7b6 {[%clk 0:00:22.3]} 20. Bxb6 {[%clk 0:00:54.4]} 20... Nxc3+ {[%clk
0:00:22.1]} 21. Ka1 {[%clk 0:00:26.5]} 21... Qf5 {[%clk 0:00:19.2]} 22. Rxg6+
{[%clk 0:00:20.6]} 22... Kh7 {[%clk 0:00:16.7]} 23. Bd3 {[%clk 0:00:16.4]} 23...
Ne4 {[%clk 0:00:17.2]} 24. Rg2 {[%clk 0:00:06.5]} 24... axb6 {[%clk 0:00:14.8]}
25. Qe2 {[%clk 0:00:06]} 25... d5 {[%clk 0:00:15.4]} 26. Rdg1 {[%clk 0:00:05.5]}
26... Rg8 {[%clk 0:00:14.4]} 27. Rg5 {[%clk 0:00:05.6]} 27... Rxg5 {[%clk
0:00:09.9]} 28. fxg5 {[%clk 0:00:05.4]} 28... Bg7 {[%clk 0:00:10.5]} 29. Rf1
{[%clk 0:00:04.6]} 29... Rxa3+ {[%clk 0:00:06]} 30. Kb1 {[%clk 0:00:04.5]} 30...
Qe5 {[%clk 0:00:06.7]} 31. c3 {[%clk 0:00:03.9]} 31... Kg8 {[%clk 0:00:01.9]}
32. Bxe4 {[%clk 0:00:03]} 32... Ra8 {[%clk 0:00:02]} 33. Qh5 {[%clk 0:00:01.6]}
33... Qxe4+ {[%clk 0:00:02.3]} 0-1

[Event "Early-Titled-Tuesday-Blitz-October-10-2023"]
[Site "Chess.com"]
[Date "2023.10.10"]
[Round "11"]
[White "djano"]
[Black "vladgoncharov"]
[Result "0-1"]
[WhiteElo "2670"]
[BlackElo "2546"]
[TimeControl "180+1"]
[EndTime "10:04:54 PDT"]
[Termination "vladgoncharov won on time"]

1. e4 {[%clk 0:03:00.9]} 1... e6 {[%clk 0:02:54.5]} 2. b3 {[%clk 0:02:58.5]}
2... d5 {[%clk 0:02:51.3]} 3. Bb2 {[%clk 0:02:58.8]} 3... Nf6 {[%clk 0:02:47.4]}
4. d3 {[%clk 0:02:58.2]} 4... dxe4 {[%clk 0:02:45.7]} 5. Nd2 {[%clk 0:02:58.5]}
5... Bb4 {[%clk 0:02:31]} 6. a3 {[%clk 0:02:58.5]} 6... Bc5 {[%clk 0:02:07.1]}
7. Nxe4 {[%clk 0:02:51.7]} 7... Nxe4 {[%clk 0:02:01.3]} 8. dxe4 {[%clk
0:02:52.6]} 8... Qxd1+ {[%clk 0:02:01.3]} 9. Rxd1 {[%clk 0:02:53.5]} 9... f6
{[%clk 0:01:58.4]} 10. b4 {[%clk 0:02:45]} 10... Be7 {[%clk 0:01:54.3]} 11. Bc4
{[%clk 0:02:44.5]} 11... Nc6 {[%clk 0:01:48.8]} 12. Ne2 {[%clk 0:02:40.5]} 12...
e5 {[%clk 0:01:48.8]} 13. f4 {[%clk 0:02:30.8]} 13... Bg4 {[%clk 0:01:45]} 14.
h3 {[%clk 0:02:22.2]} 14... Bxe2 {[%clk 0:01:43.5]} 15. Kxe2 {[%clk 0:02:23.1]}
15... exf4 {[%clk 0:01:43.1]} 16. Rhf1 {[%clk 0:02:16.4]} 16... Bd6 {[%clk
0:01:42.6]} 17. Bd5 {[%clk 0:02:06.3]} 17... Ke7 {[%clk 0:01:38.8]} 18. c4
{[%clk 0:02:05.4]} 18... Rad8 {[%clk 0:01:29.6]} 19. Bc1 {[%clk 0:01:58.7]}
19... g5 {[%clk 0:01:27.7]} 20. h4 {[%clk 0:01:28.1]} 20... h6 {[%clk
0:01:22.5]} 21. Rh1 {[%clk 0:01:09.4]} 21... Be5 {[%clk 0:01:21]} 22. c5 {[%clk
0:00:51.4]} 22... Nd4+ {[%clk 0:01:19]} 23. Kf2 {[%clk 0:00:52]} 23... c6 {[%clk
0:01:18.8]} 24. Bc4 {[%clk 0:00:52]} 24... Ne6 {[%clk 0:01:11.2]} 25. Ke1 {[%clk
0:00:40.7]} 25... Rxd1+ {[%clk 0:01:07.8]} 26. Kxd1 {[%clk 0:00:41.6]} 26...
Rd8+ {[%clk 0:00:57.2]} 27. Kc2 {[%clk 0:00:42]} 27... Rd4 {[%clk 0:00:54.9]}
28. Bd3 {[%clk 0:00:41.2]} 28... g4 {[%clk 0:00:55.2]} 29. Bd2 {[%clk
0:00:35.4]} 29... h5 {[%clk 0:00:53.2]} 30. Rf1 {[%clk 0:00:35.1]} 30... b5
{[%clk 0:00:49.5]} 31. a4 {[%clk 0:00:33.3]} 31... a6 {[%clk 0:00:38.6]} 32.
axb5 {[%clk 0:00:32.3]} 32... axb5 {[%clk 0:00:38.7]} 33. Bc3 {[%clk 0:00:29.7]}
33... Rd7 {[%clk 0:00:38.2]} 34. Bd2 {[%clk 0:00:30.4]} 34... Ra7 {[%clk
0:00:37.1]} 35. Rd1 {[%clk 0:00:16.6]} 35... Ra3 {[%clk 0:00:31.3]} 36. Bf1
{[%clk 0:00:13.9]} 36... Nd4+ {[%clk 0:00:27.7]} 37. Kb1 {[%clk 0:00:14.2]}
37... f3 {[%clk 0:00:25.6]} 38. gxf3 {[%clk 0:00:14.2]} 38... Nxf3 {[%clk
0:00:25.4]} 39. Bc1 {[%clk 0:00:13.2]} 39... Ra1+ {[%clk 0:00:24.5]} 40. Kc2
{[%clk 0:00:13.4]} 40... Nxh4 {[%clk 0:00:23]} 41. Bd3 {[%clk 0:00:09.2]} 41...
Nf3 {[%clk 0:00:22.5]} 42. Rh1 {[%clk 0:00:07.4]} 42... h4 {[%clk 0:00:22.5]}
43. Be3 {[%clk 0:00:05.1]} 43... Rxh1 {[%clk 0:00:21.9]} 0-1